fUSD/lending_fUSD_20260123
["ID","MTS","AMOUNT","RATE_DAILY","PERIOD"]
[403099419,1769159432254,-529.0755,0.000146,2]
[403099420,1769159432263,-202.47720442,0.00014689,2]
[403099421,1769159432272,-21462.38641358,0.0001469,2]
[403099422,1769159432280,-500.0,0.00014699,2]
[403099423,1769159432293,-175.53284092,0.00014699,2]
[403099424,1769159432302,-240.92053707,0.00014699,2]
[403099425,1769159432312,-168.20756818,0.00014699,2]
[403099426,1769159432322,-331.33715232,0.00014699,2]
[403099427,1769159432331,-156743.10255508,0.000147,2]
[403099429,1769159432343,-22740.88424752,0.000147,2]
[403099431,1769159432354,-25750.61649929,0.000147,2]
[403099433,1769159432363,-300.0,0.00014737,2]
[403099435,1769159432373,-521.92,0.0001475,2]
[403099437,1769159432383,-1035.347,0.00014751,2]
[403099439,1769159432392,-186.706,0.00014751,2]
[403099441,1769159432401,-505.97122619,0.0001476,2]
[403099443,1769159432411,-515.67927175,0.0001476,2]
[403099445,1769159432420,-157.45857731,0.00014761,2]
[403099608,1769159438284,-3508.99075609,0.00014637,2]
[403099609,1769159438338,-3065.29082831,0.00014637,2]
[403099610,1769159438348,-202.29722269,0.00014761,2]
[403099611,1769159438358,-895.29880827,0.00014843,2]
[403099612,1769159438371,-104.70119173,0.00014843,2]
[403099613,1769159438381,-166.66,0.00014961,2]
[403099614,1769159438391,-6319.32453794,0.00014998,2]
[403099615,1769159438402,-503.26427033,0.00015,2]
[403099710,1769159440282,-790.76100007,0.00015,2]
[403099711,1769159440293,-1585.95673228,0.00015,2]
[403099712,1769159440306,-3694.29958166,0.00015,2]
[403099713,1769159440315,-521.92,0.00015024,2]
[403099714,1769159440326,-166.66,0.00015257,2]
[403099715,1769159440336,-521.92,0.00015298,2]
[403099716,1769159440346,-1273.0,0.00015337,2]
[403099717,1769159440356,-395.0,0.00015338,2]
[403099718,1769159440367,-6319.32453794,0.00015361,2]
[403099719,1769159440377,-1898.0,0.00015367,2]
[403099720,1769159440387,-470.0,0.00015509,2]
[403099721,1769159440397,-166.66,0.00015554,2]
[403099722,1769159440406,-521.92,0.00015572,2]
[403099723,1769159440416,-157.75,0.0001559,2]
[403099724,1769159440426,-151.0,0.00015695,2]
[403099725,1769159440440,-151.0,0.00015702,2]
[403099726,1769159440450,-6319.32453794,0.00015723,2]
[403099727,1769159440459,-244.0,0.00015726,2]
[403099728,1769159440470,-150.0,0.0001576,2]
[403099729,1769159440480,-776.0,0.00015788,2]
[403099730,1769159440490,-285.62,0.00015832,2]
[403099731,1769159440499,-521.92,0.00015846,2]
[403099732,1769159440511,-2840.65,0.00015919,2]
[403099733,1769159440520,-420.0,0.00015984,2]
[403099734,1769159440530,-420.0,0.00015984,2]
[403099735,1769159440540,-420.0,0.00015984,2]
[403099736,1769159440550,-191.0,0.00015984,2]
[403099737,1769159440559,-1265.0,0.00016032,2]
[403099738,1769159440569,-1265.0,0.00016032,2]
[403099739,1769159440578,-250.0,0.00016059,2]
[403099740,1769159440588,-250.0,0.00016059,2]
[403099741,1769159440598,-504.60985447,0.00016059,2]
[403099742,1769159440607,-1680.0,0.00016059,2]
[403099743,1769159440617,-6319.32453794,0.00016086,2]
[403099744,1769159440627,-2889.35806899,0.00016117,2]
[403099745,1769159440636,-5097.17012025,0.00016117,2]
[403099746,1769159440646,-7625.06165817,0.00016117,2]
[403099747,1769159440655,-10316.9781,0.00016117,2]
[403099748,1769159440665,-521.94,0.0001612,2]
[403099749,1769159440674,-154.5551622,0.00016126,2]
[403099750,1769159440684,-374.99158265,0.00016169,2]
[403099751,1769159440693,-300.0,0.00016209,2]
[403099752,1769159440703,-500.0,0.00016215,2]
[403099753,1769159440712,-854.2589148,0.00016215,2]
[403099754,1769159440721,-500.0,0.00016215,2]
[403099755,1769159440730,-250.0,0.00016215,2]
[403099756,1769159440739,-500.0,0.00016215,2]
[403099757,1769159440749,-250.0,0.00016215,2]
[403099758,1769159440758,-500.0,0.00016215,2]
[403099759,1769159440767,-500.0,0.00016215,2]
[403099760,1769159440776,-250.0,0.00016215,2]
[403099761,1769159440786,-523.75609166,0.00016215,2]
[403099762,1769159440795,-500.0,0.00016215,2]
[403099763,1769159440804,-250.0,0.00016215,2]
[403099764,1769159440814,-500.0,0.00016215,2]
[403099765,1769159440824,-250.0,0.00016215,2]
[403099766,1769159440833,-500.0,0.00016215,2]
[403099767,1769159440843,-250.0,0.00016215,2]
[403099768,1769159440852,-500.0,0.00016215,2]
[403099769,1769159440862,-250.0,0.00016215,2]
[403099770,1769159440871,-500.0,0.00016215,2]
[403099771,1769159440881,-264.58100007,0.00016215,2]
[403099772,1769159440890,-500.0,0.00016215,2]
[403099773,1769159440900,-500.0,0.00016215,2]
[403099774,1769159440909,-500.0,0.00016215,2]
[403099775,1769159440919,-553.76777094,0.00016215,2]
[403099776,1769159440928,-334.5472959,0.00016215,2]
[403099778,1769159440937,-3210.0,0.00016215,2]
[403099779,1769159440946,-500.0,0.00016215,2]
[403099780,1769159440955,-500.0,0.00016215,2]
[403099781,1769159440965,-500.0,0.00016215,2]
[403099782,1769159440974,-500.0,0.00016215,2]
[403099783,1769159440983,-500.0,0.00016215,2]
[403099784,1769159440993,-500.0,0.00016215,2]
[403099785,1769159441002,-500.0,0.00016215,2]
[403099786,1769159441011,-500.0,0.00016215,2]
[403099787,1769159441020,-151.0,0.00016215,2]
[403099788,1769159441030,-500.0,0.00016215,2]
[403099789,1769159441040,-151.0,0.00016215,2]
[403099790,1769159441049,-500.0,0.00016215,2]
[403099791,1769159441058,-151.0,0.00016215,2]
[403099792,1769159441068,-500.0,0.00016215,2]
[403099793,1769159441077,-151.0,0.00016215,2]
[403099794,1769159441087,-151.0,0.00016215,2]
[403099795,1769159441096,-151.0,0.00016215,2]
[403099796,1769159441106,-151.0,0.00016215,2]
[403099797,1769159441118,-151.0,0.00016215,2]
[403099798,1769159441127,-151.0,0.00016215,2]
[403099799,1769159441136,-151.0,0.00016215,2]
[403099800,1769159441147,-151.0,0.00016215,2]
[403099801,1769159441156,-500.0,0.00016274,2]
[403099802,1769159441166,-150.0,0.00016274,2]
[403099803,1769159441176,-150.0,0.00016274,2]
[403099804,1769159441186,-500.0,0.00016274,2]
[403099805,1769159441196,-150.0,0.00016274,2]
[403099806,1769159441206,-150.0,0.00016274,2]
[403099807,1769159441216,-150.0,0.00016274,2]
[403099808,1769159441226,-150.0,0.00016274,2]
[403099809,1769159441237,-150.0,0.00016274,2]
[403099810,1769159441246,-500.0,0.00016274,2]
[403099811,1769159441255,-500.0,0.00016274,2]
[403099812,1769159441265,-500.0,0.00016274,2]
[403099813,1769159441274,-500.0,0.00016274,2]
[403099814,1769159441283,-500.0,0.00016274,2]
[403099815,1769159441293,-500.0,0.00016329,2]
[403099816,1769159441302,-150.0,0.00016329,2]
[403099817,1769159441312,-500.0,0.00016329,2]
[403099818,1769159441321,-150.0,0.00016329,2]
[403099819,1769159441330,-150.0,0.00016329,2]
[403099820,1769159441339,-150.0,0.00016329,2]
[403099821,1769159441348,-500.0,0.00016329,2]
[403099822,1769159441358,-500.0,0.00016329,2]
[403099823,1769159441367,-500.0,0.00016329,2]
[403099824,1769159441376,-500.0,0.00016329,2]
[403099825,1769159441388,-500.0,0.00016329,2]
[403099826,1769159441397,-500.0,0.00016384,2]
[403099827,1769159441407,-200.0,0.00016384,2]
[403099828,1769159441418,-500.0,0.00016384,2]
[403099829,1769159441430,-200.0,0.00016384,2]
[403099830,1769159441440,-200.0,0.00016384,2]
[403099831,1769159441450,-200.0,0.00016384,2]
[403099832,1769159441459,-500.0,0.00016384,2]
[403099833,1769159441469,-500.0,0.00016384,2]
[403099834,1769159441478,-500.0,0.00016384,2]
[403099835,1769159441488,-500.0,0.00016384,2]
[403099836,1769159441497,-500.0,0.00016384,2]
[403099837,1769159441509,-154.55516217,0.00016422,2]
[403099838,1769159441518,-532.80322898,0.00016438,2]
[403099839,1769159441528,-500.0,0.00016438,2]
[403099840,1769159441538,-500.0,0.00016438,2]
[403099841,1769159441547,-500.0,0.00016438,2]
[403099842,1769159441556,-500.0,0.00016438,2]
[403099843,1769159441566,-500.0,0.00016438,2]
[403099844,1769159441576,-500.0,0.00016438,2]
[403099845,1769159441585,-500.0,0.00016438,2]
[403099846,1769159441595,-500.0,0.00016438,2]
[403099847,1769159441605,-500.0,0.00016438,2]
[403099848,1769159441615,-500.0,0.00016438,2]
[403099849,1769159441625,-500.0,0.00016438,2]
[403099850,1769159441635,-500.0,0.00016438,2]
[403099851,1769159441645,-500.0,0.00016438,2]
[403099852,1769159441654,-500.0,0.00016438,2]
[403099853,1769159441664,-500.0,0.00016438,2]
[403099854,1769159441673,-500.0,0.00016438,2]
[403099855,1769159441683,-500.0,0.00016438,2]
[403099856,1769159441692,-500.0,0.00016438,2]
[403099857,1769159441702,-500.0,0.00016438,2]
[403099858,1769159441712,-500.0,0.00016438,2]
[403099859,1769159441722,-618.40716099,0.00016438,2]
[403099860,1769159441731,-500.0,0.00016438,2]
[403099861,1769159441742,-500.0,0.00016438,2]
[403099862,1769159441751,-500.0,0.00016438,2]
[403099863,1769159441761,-500.0,0.00016438,2]
[403099864,1769159441771,-500.0,0.00016438,2]
[403099865,1769159441782,-500.0,0.00016438,2]
[403099866,1769159441791,-500.0,0.00016438,2]
[403099867,1769159441802,-500.0,0.00016438,2]
[403099868,1769159441812,-500.0,0.00016438,2]
[403099869,1769159441822,-500.0,0.00016438,2]
[403099870,1769159441832,-500.0,0.00016438,2]
[403099871,1769159441842,-500.0,0.00016438,2]
[403099872,1769159441851,-500.0,0.00016438,2]
[403099873,1769159441861,-500.0,0.00016438,2]
[403099874,1769159441871,-174.0,0.00016438,2]
[403099875,1769159441881,-282.89807342,0.00016438,2]
[403099876,1769159441892,-500.0,0.00016438,2]
[403099877,1769159441901,-500.0,0.00016438,2]
[403099878,1769159441913,-500.0,0.00016438,2]
[403099879,1769159441922,-193.033,0.0001644,2]
[403099880,1769159441932,-6319.32453794,0.00016449,2]
[403099881,1769159441941,-229.35,0.00016486,2]
[403099882,1769159441952,-500.0,0.00016493,2]
[403099883,1769159441962,-229.35,0.00016529,2]
[403099884,1769159441971,-500.0,0.00016548,2]
[403099885,1769159441980,-4627.0,0.00016556,2]
[403099886,1769159441990,-229.35,0.00016573,2]
[403099887,1769159441999,-500.0,0.00016603,2]
[403099888,1769159442009,-229.35,0.00016616,2]
[403099889,1769159442019,-500.0,0.00016658,2]
[403099890,1769159442028,-229.35,0.00016659,2]
[403099891,1769159442038,-1000.0,0.00016698,2]
[403099892,1769159442048,-229.35,0.00016703,2]
[403099893,1769159442057,-500.0,0.00016712,2]
[403099894,1769159442066,-154.55516217,0.00016717,2]
[403099895,1769159442076,-229.35,0.00016746,2]
[403099896,1769159442085,-4627.0,0.00016758,2]
[403099897,1769159442094,-885.86649465,0.00016763,2]
[403099898,1769159442104,-500.0,0.00016767,2]
[403099899,1769159442113,-4976.0,0.00016788,2]
[403099900,1769159442123,-229.35,0.0001679,2]
[403099901,1769159442132,-6319.32453794,0.00016812,2]
[403099902,1769159442142,-500.0,0.00016822,2]
[403099903,1769159442151,-229.35,0.00016833,2]
[403099904,1769159442160,-229.35,0.00016876,2]
[403099905,1769159442170,-350.0,0.00016877,2]
[403099906,1769159442179,-378.0,0.00016886,2]
[403099907,1769159442189,-229.35,0.0001692,2]
[403099908,1769159442199,-378.0,0.0001694,2]
[403099909,1769159442209,-229.35,0.00016963,2]
[403099910,1769159442218,-378.0,0.00016963,2]
[403099911,1769159442227,-250.0,0.00017,2]
[403099912,1769159442236,-378.0,0.00017001,2]
[403099913,1769159442246,-229.35,0.00017007,2]
[403099914,1769159442255,-154.55516217,0.00017013,2]
[403099915,1769159442264,-378.0,0.00017032,2]
[403099916,1769159442273,-229.35,0.0001705,2]
[403099917,1769159442282,-229.35,0.00017093,2]
[403099918,1769159442292,-229.35,0.00017137,2]
[403099919,1769159442302,-6319.32453794,0.00017174,2]
[403099920,1769159442311,-229.35,0.0001718,2]
[403099921,1769159442320,-229.35,0.00017224,2]
[403099922,1769159442329,-1000.0,0.0001726,2]
[403099923,1769159442339,-229.35,0.00017267,2]
[403099924,1769159442349,-378.0,0.00017282,2]
[403099925,1769159442358,-154.55516217,0.00017309,2]
[403099926,1769159442367,-229.35,0.0001731,2]
[403099927,1769159442376,-918.64355495,0.00017311,2]
[403099928,1769159442386,-378.0,0.00017333,2]
[403099929,1769159442396,-378.0,0.00017372,2]
[403099930,1769159442405,-2077.66396114,0.00017387,2]
[403099931,1769159442414,-2592.0,0.00017396,2]
[403099932,1769159442423,-184.0,0.00017498,2]
[403099933,1769159442436,-1269.0,0.00017498,2]
[403099934,1769159442445,-916.0,0.00017499,2]
[403099935,1769159442454,-1203.0,0.00017499,2]
[403099936,1769159442463,-318.0,0.00017501,2]
[403099937,1769159442474,-2441.0,0.00017501,2]
[403099938,1769159442723,-567.0,0.00017501,2]
[403099939,1769159442732,-3237.532,0.00017501,2]
[403099940,1769159442742,-200.0,0.0001752,2]
[403099941,1769159442751,-1000.0,0.00017534,2]
[403099942,1769159442760,-6319.32453794,0.00017537,2]
[403099943,1769159442770,-157.75,0.00017539,2]
[403099944,1769159442779,-200.0,0.00017544,2]
[403099945,1769159442788,-3210.0,0.00017584,2]
[403099946,1769159442797,-200.0,0.000176,2]
[403099947,1769159442806,-154.55516217,0.00017604,2]
[403099948,1769159442814,-3475.0,0.00017616,2]
[403099949,1769159442823,-615.0,0.00017616,2]
[403099950,1769159442832,-1702.78789754,0.0001764,2]
[403099951,1769159442840,-2592.0,0.00017644,2]
[403099952,1769159442849,-2351.0,0.00017665,2]
[403099953,1769159442859,-1000.0,0.000177,2]
[403099954,1769159442867,-1000.0,0.00017788,2]
[403099955,1769159442876,-200.0,0.00017791,2]
[403099956,1769159442885,-1000.0,0.000178,2]
[403099957,1769159442895,-500.0,0.00017808,2]
[403099958,1769159442904,-1000.0,0.00017808,2]
[403099959,1769159442913,-1868.45053,0.0001782,2]
[403099960,1769159442922,-1868.45054,0.0001782,2]
[403099961,1769159442931,-3385.2,0.00017838,2]
[403099962,1769159442941,-200.0,0.00017855,2]
[403099963,1769159442950,-200.0,0.00017856,2]
[403099964,1769159442959,-200.0,0.00017856,2]
[403099965,1769159442969,-1000.0,0.00017861,2]
[403099966,1769159442980,-500.0,0.00017863,2]
[403099967,1769159442990,-516.54603341,0.00017873,2]
[403099968,1769159442999,-500.0,0.00017873,2]
[403099969,1769159443008,-506.36557404,0.00017873,2]
[403099970,1769159443018,-500.0,0.00017873,2]
[403099972,1769159443027,-504.44885816,0.00017873,2]
[403099973,1769159443036,-500.0,0.00017873,2]
[403099974,1769159443045,-500.0,0.00017873,2]
[403099975,1769159443054,-500.0,0.00017873,2]
[403099976,1769159443063,-501.1691222,0.00017873,2]
[403099977,1769159443073,-10000.0,0.000179,2]
[403099978,1769159443081,-3223.4986,0.000179,2]
[403099979,1769159443091,-255.33658603,0.000179,3]
[403099980,1769159443101,-154.55516217,0.000179,2]
[403099981,1769159443111,-1687.0,0.000179,2]
[403099982,1769159443120,-6319.32453794,0.000179,2]
[403099984,1769159443129,-1029.03849237,0.000179,2]
[403099985,1769159443138,-2237.33304085,0.000179,2]
[403099987,1769159443147,-1941.77145344,0.000179,2]
[403099989,1769159443156,-390.60796162,0.000179,2]
[403099992,1769159443165,-200.0,0.00017904,2]
[403099994,1769159443174,-308.03994582,0.00017918,2]
[403099995,1769159443183,-500.0,0.00017973,2]
[403099997,1769159443193,-150.0,0.00017973,2]
[403099998,1769159443202,-500.0,0.00017982,2]
[403099999,1769159443211,-3907.1854016,0.00017987,2]
[403100000,1769159443220,-154.24544634,0.0001799,2]
[403100001,1769159443229,-154.24544634,0.0001799,2]
[403100002,1769159443237,-154.24544634,0.0001799,2]
[403100003,1769159443246,-151.0,0.00017997,2]
[403100004,1769159443255,-150.0,0.00017999,2]
[403100005,1769159443264,-219.50243608,0.00017999,2]
[403100006,1769159443273,-300.0,0.00017999,2]
[403100007,1769159443282,-300.0,0.00017999,2]
[403100008,1769159443291,-689.3219085,0.00017999,2]
[403100009,1769159443300,-199.60395493,0.00017999,2]
[403100010,1769159443309,-813.51531716,0.00018,2]
[403100011,1769159443318,-7724709.53199399,0.00018,2]
[403100012,1769159443454,-151.0,0.00015752,2]
[403100013,1769159443463,-881.78232778,0.00018,2]
[403100014,1769159443476,-8768.96849689,0.00018,2]
[403100015,1769159443969,-1153.39351811,0.000146,2]
[403100017,1769159443979,-784.68397179,0.00015362,2]
[403100019,1769159443990,-3661.715,0.00015362,2]
[403100020,1769159444001,-1772.16665824,0.00015362,2]
[403100021,1769159444132,-291.34901742,0.00015362,2]
[403100022,1769159444148,-64.36693689,0.00015362,2]
[403100023,1769159444157,-1376.02281178,0.000179,2]
[403100024,1769159444166,-167.7051116,0.000179,2]
[403100025,1769159446191,-82.29494246,0.000179,2]
[403100026,1769159446200,-160151.86854709,0.00018,2]
[403100027,1769159446244,-2931.99999998,0.00018,2]
[403100028,1769159446300,-6244.22366505,0.00018,2]
[403100029,1769159446313,-3281.0519054,0.00018,2]
[403100031,1769159479188,158.43721401,0.00014544,2]
[403100032,1769159492514,1069.745,0.00014308,2]
[403100033,1769159492562,186.70637568,0.00014308,2]
[403100034,1769159508312,152.32567294,0.00014544,2]
[403100035,1769159513179,192.16058825,0.00014499,2]
[403100036,1769159519217,192.16058825,0.00014522,2]
[403100037,1769159525136,192.16058825,0.00014544,2]
[403100038,1769159680964,6240.12810928,0.00014544,2]
[403100039,1769159699782,155.26686862,0.00014544,2]
[403100040,1769159727105,200.0,0.000149,5]
[403100041,1769159741273,158.43721399,0.00014544,2]
[403100043,1769159779609,150.0,0.0001437,2]
[403100044,1769159779693,150.0,0.00014425,2]
[403100045,1769159779751,500.0,0.0001437,2]
[403100046,1769159779857,200.0,0.0001448,2]
[403100047,1769159779932,500.0,0.00014425,2]
[403100048,1769159780014,150.0,0.0001437,2]
[403100049,1769159780074,500.0,0.0001448,2]
[403100050,1769159780778,150.0,0.0001437,2]
[403100051,1769159781112,150.0,0.00014425,2]
[403100052,1769159781159,463.0,0.0001437,2]
[403100053,1769159781259,200.0,0.0001448,2]
[403100054,1769159781318,333.17780811,0.0001437,2]
[403100055,1769159781340,166.82219189,0.0001437,2]
[403100056,1769159781444,463.0,0.00014425,2]
[403100057,1769159781504,500.0,0.00014425,2]
[403100058,1769159781553,463.0,0.0001448,2]
[403100059,1769159781672,521.72565266,0.0001448,2]
[403100060,1769159782080,463.0,0.00014534,2]
[403100061,1769159782140,150.0,0.0001437,2]
[403100062,1769159785390,500.0,0.0001437,2]
[403100063,1769159785554,500.0,0.00014425,2]
[403100064,1769159785715,500.0,0.0001448,2]
[403100066,1769159809221,4650.50997452,0.00014544,2]
[403100067,1769159810643,205.60368029,0.00014496,2]
[403100068,1769159830051,155.26686862,0.00014544,2]
[403100069,1769159848689,761.08163202,0.00014516,2]
[403100070,1769159848710,893.12493798,0.00014516,2]
[403100073,1769159894439,-463.0,0.00014589,2]
[403100074,1769159894468,-611.72959528,0.0001459,2]
[403100075,1769159894497,-150.0,0.0001459,2]
[403100076,1769159894525,-300.0,0.0001459,2]
[403100077,1769159894555,-216.64293227,0.00014591,2]
[403100078,1769159894827,-151.0,0.00014591,2]
[403100079,1769159894859,-151.0,0.00014591,2]
[403100080,1769159894909,-151.0,0.00014591,2]
[403100081,1769159894940,-151.0,0.00014591,2]
[403100082,1769159894971,-151.0,0.00014591,2]
[403100083,1769159894999,-151.0,0.00014591,2]
[403100084,1769159895026,-151.0,0.00014591,2]
[403100085,1769159895054,-196.73716484,0.00014591,2]
[403100086,1769159895082,-500.0,0.00014591,2]
[403100087,1769159895110,-500.0,0.00014591,2]
[403100088,1769159895139,-500.0,0.00014591,2]
[403100089,1769159895167,-500.0,0.00014591,2]
[403100090,1769159900150,-500.0,0.00014497,2]
[403100091,1769159900180,-1200.0,0.0001459,2]
[403100092,1769159900209,-500.0,0.00014591,2]
[403100093,1769159900238,-500.0,0.00014591,2]
[403100094,1769159900267,-500.0,0.00014591,2]
[403100095,1769159900300,-500.0,0.00014591,2]
[403100096,1769159900330,-500.0,0.00014591,2]
[403100097,1769159900359,-500.0,0.00014591,2]
[403100098,1769159900387,-199.44610928,0.00014591,2]
[403100099,1769159910395,-500.0,0.00014591,2]
[403100100,1769159910425,-465.37586822,0.00014591,2]
[403100101,1769159910454,-200.0,0.00014591,2]
[403100102,1769159910482,-500.0,0.00014591,2]
[403100103,1769159910510,-500.0,0.00014591,2]
[403100104,1769159910537,-500.0,0.00014591,2]
[403100105,1769159910567,-500.0,0.00014591,2]
[403100106,1769159910594,-500.0,0.00014591,2]
[403100107,1769159910622,-500.0,0.00014591,2]
[403100108,1769159910653,-500.0,0.00014591,2]
[403100109,1769159910681,-151.0,0.00014591,2]
[403100110,1769159918335,150.0,0.00014324,2]
[403100111,1769159918416,153.15937523,0.00014379,2]
[403100112,1769159918740,150.0,0.00014324,2]
[403100113,1769159918862,150.0,0.00014379,2]
[403100114,1769159919016,200.0,0.00014434,2]
[403100115,1769159919550,150.0,0.00014324,2]
[403100116,1769159919735,150.0,0.00014324,2]
[403100117,1769159919898,150.0,0.00014379,2]
[403100118,1769159919949,150.0,0.00014324,2]
[403100119,1769159920088,150.0,0.00014379,2]
[403100120,1769159920150,183.73093878,0.00014434,2]
[403100121,1769159920248,500.0,0.00014324,2]
[403100122,1769159920288,163.64353549,0.00014324,2]
[403100123,1769159920341,500.0,0.00014379,2]
[403100124,1769159920635,500.0,0.00014434,2]
[403100125,1769159920794,500.0,0.00014488,2]
[403100126,1769159920832,500.0,0.00014324,2]
[403100127,1769159920950,500.0,0.00014543,2]
[403100128,1769159920984,500.0,0.00014379,2]
[403100129,1769159921354,500.0,0.00014434,2]
[403100130,1769159921516,500.0,0.00014488,2]
[403100131,1769159921681,500.0,0.00014543,2]
[403100135,1769159959797,500.0,0.00014323,2]
[403100136,1769159959876,500.0,0.00014323,2]
[403100137,1769159959979,500.0,0.00014378,2]
[403100138,1769159960059,500.0,0.00014378,2]
[403100139,1769159960219,500.0,0.00014433,2]
[403100140,1769159960343,309.3676208,0.00014433,2]
[403100141,1769159960541,290.1085297,0.00014487,2]
[403100142,1769159960563,213.51744291,0.00014487,2]
[403100143,1769159960703,150.0,0.00014323,2]
[403100144,1769159961948,500.0,0.00014323,2]
[403100145,1769159962124,500.0,0.00014378,2]
[403100146,1769159962288,500.0,0.00014433,2]
[403100147,1769159962480,500.0,0.00014487,2]
[403100148,1769159962694,500.0,0.00014542,2]
[403100150,1769159990993,159.47922633,0.00014552,2]
[403100151,1769160033539,154.5551622,0.00014552,2]
[403100152,1769160084220,150.0,0.00014323,2]
[403100153,1769160084264,150.0,0.00014323,2]
[403100154,1769160084374,150.0,0.00014378,2]
[403100155,1769160084446,150.0,0.00014378,2]
[403100156,1769160084572,150.0,0.00014433,2]
[403100157,1769160084610,150.0,0.00014433,2]
[403100158,1769160084725,150.0,0.00014487,2]
[403100159,1769160084808,157.37066984,0.00014323,2]
[403100160,1769160084858,500.0,0.00014323,2]
[403100161,1769160084893,150.0,0.00014542,2]
[403100162,1769160085189,500.0,0.00014378,2]
[403100163,1769160085368,500.0,0.00014433,2]
[403100164,1769160085403,155.20427903,0.00014323,2]
[403100165,1769160085484,150.0,0.00014323,2]
[403100166,1769160085528,500.0,0.00014487,2]
[403100167,1769160085592,150.0,0.00014323,2]
[403100168,1769160085661,150.0,0.00014378,2]
[403100169,1769160085704,500.0,0.00014542,2]
[403100170,1769160085764,150.0,0.00014378,2]
[403100171,1769160085948,150.0,0.00014433,2]
[403100172,1769160086026,500.0,0.00014323,2]
[403100173,1769160086117,150.0,0.00014487,2]
[403100174,1769160086180,500.0,0.00014378,2]
[403100175,1769160086316,150.0,0.00014542,2]
[403100176,1769160086358,500.0,0.00014433,2]
[403100177,1769160086438,259.88321969,0.00014323,2]
[403100178,1769160086459,240.11678031,0.00014323,2]
[403100179,1769160086513,500.0,0.00014487,2]
[403100180,1769160086583,500.0,0.00014378,2]
[403100181,1769160086675,500.0,0.00014542,2]
[403100182,1769160086743,500.0,0.00014433,2]
[403100183,1769160086787,150.0,0.00014487,2]
[403100184,1769160086901,500.0,0.00014487,2]
[403100185,1769160086985,150.0,0.00014542,2]
[403100186,1769160087049,500.0,0.00014542,2]
[403100187,1769160095776,153.97514869,0.0001449,2]
[403100189,1769160102086,153.97514868,0.00014521,2]
[403100190,1769160107711,153.97514868,0.00014552,2]
[403100193,1769160119400,5246.41,0.0001236,2]
[403100199,1769160150876,500.0,0.00013699,2]
[403100200,1769160153531,-300.0,0.0001459,2]
[403100201,1769160153560,-191.0,0.0001459,2]
[403100202,1769160153592,-1200.0,0.0001459,2]
[403100203,1769160153626,-271.0,0.0001459,2]
[403100204,1769160153663,-300.0,0.0001459,2]
[403100205,1769160153694,-300.0,0.0001459,2]
[403100206,1769160153730,-250.0,0.00014591,2]
[403100207,1769160153761,-151.0,0.00014591,2]
[403100208,1769160153792,-151.0,0.00014591,2]
[403100209,1769160153822,-151.0,0.00014591,2]
[403100210,1769160153852,-162.43407094,0.00014591,2]
[403100211,1769160153882,-500.0,0.00014591,2]